bitfinex/quotes_ETHUSD_20220308
["timestamp","ask_amount","ask_price","bid_price","bid_amount"]
[1646760678994,1.9349,2586.4,2586.0,0.02455912]
[1646760679998,1.9349,2586.4,2586.1,0.0046623]
[1646760680802,1.9349,2586.4,2586.0,0.02455912]
[1646760681000,0.89864834,2586.2,2586.0,0.02455912]
[1646760681199,4.89933834,2586.2,2585.9,0.72487215]
[1646760681402,0.96788,2586.1,2585.9,0.72487215]
[1646760681599,0.96785,2586.0,2585.9,0.72487215]
[1646760681799,3.0,2585.9,2584.9,0.3861]
[1646760682101,3.0,2585.9,2584.6,0.5]
[1646760682102,3.0,2585.6,2584.6,0.5]
[1646760682300,3.0,2585.6,2584.7,0.89937519]
[1646760682301,0.3,2585.3,2584.7,0.89937519]
[1646760682505,0.25,2585.0,2584.7,0.89937519]
[1646760682748,0.25,2585.0,2584.8,0.89937519]
[1646760683149,1.93637,2584.9,2584.8,0.89937519]
[1646760683452,2.23637,2584.9,2584.8,0.89937519]
[1646760683846,0.25,2584.5,2584.0,0.89937519]
[1646760684246,0.25,2584.5,2584.2,0.89937519]
[1646760684657,1.21808,2584.5,2584.2,0.89937519]
[1646760684847,0.96819,2584.4,2584.2,0.89937519]
[1646760685052,0.96819,2584.4,2584.3,0.89937519]
[1646760688497,0.96819,2584.4,2582.6,3.3936089]
[1646760688498,0.72341055,2584.3,2583.2,1.177]
[1646760688706,0.96858,2584.0,2583.2,1.177]
[1646760688897,3.0,2583.9,2583.2,1.177]
[1646760689096,3.0,2583.9,2583.3,1.177]
[1646760689297,0.25,2583.7,2583.3,1.177]
[1646760689597,2.28511,2583.7,2583.3,1.177]
[1646760689801,1.3164,2583.7,2583.3,1.177]
[1646760689997,0.2117,2583.7,2583.4,1.177]
[1646760690852,0.96858,2583.6,2583.4,1.177]
[1646760691053,0.96858,2583.6,2581.5,1.3554341]
[1646760691054,1.93776,2583.3,2581.5,1.3554341]
[1646760691254,0.25,2583.0,2581.9,2.4252]
[1646760691650,0.25,2583.0,2582.5,0.99084227]
[1646760692253,0.55,2583.0,2582.5,0.99084227]
[1646760692650,0.25,2583.0,2582.5,0.99084227]
[1646760692853,0.25,2583.0,2581.9,2.4252]
[1646760693056,0.96877,2582.8,2581.9,2.4252]
[1646760693250,0.96877,2582.8,2581.6,0.15091181]
[1646760693251,0.25,2582.4,2581.6,2.07566237]
[1646760693450,0.25,2582.4,2581.9,0.9687181]
[1646760693750,0.25,2582.4,2581.6,2.07566237]
[1646760693751,0.25,2582.9,2582.4,0.16994774]
[1646760694205,0.25,2582.9,2582.4,3.86551525]
[1646760694604,0.25,2582.9,2582.5,1.20250469]
[1646760694806,0.25,2582.9,2582.5,1.67050469]
[1646760695409,0.25,2582.9,2582.4,0.16994774]
[1646760695610,0.26250055,2582.9,2582.6,0.00352695]
[1646760695810,0.468,2582.8,2582.6,0.00352695]
[1646760696011,6.0,2582.7,2581.1,0.00808528]
[1646760696207,0.96902,2582.0,2581.1,0.00808528]
[1646760696408,0.96902,2582.0,2581.7,1.19476874]
[1646760696711,0.12549473,2582.2,2581.9,0.69886588]
[1646760696910,0.55,2582.0,2581.9,0.69886588]
[1646760698150,0.25,2582.0,2581.9,0.69886588]
[1646760698346,1.21912,2582.0,2581.9,0.69886588]
[1646760698551,1.51912,2582.0,2581.9,0.69886588]
[1646760700454,1.51912,2582.0,2581.8,0.00328445]
[1646760700756,0.96915,2581.9,2581.8,0.00461286]
[1646760701152,1.26915,2581.9,2581.8,0.00461286]
[1646760701796,1.26915,2581.9,2581.7,0.00461299]
[1646760701994,0.3,2581.8,2581.7,1.10461299]
[1646760702195,0.28968795,2581.8,2581.7,1.10461299]
[1646760703095,0.28968795,2581.8,2581.6,0.00461312]
[1646760703295,0.96917,2581.7,2581.6,0.00461312]
[1646760703695,0.96915,2581.9,2581.6,0.00461312]
[1646760704299,0.96915,2581.9,2581.5,0.00449298]
[1646760704496,0.96914,2581.8,2581.5,0.00449298]
[1646760704894,1.26914,2581.8,2581.5,0.00449298]
[1646760705153,0.9691,2581.7,2581.5,0.00449298]
[1646760705348,0.9691,2581.7,2581.5,0.0042047]
[1646760705747,0.9691,2581.7,2581.5,1.03440716]
[1646760706047,0.9691,2581.7,2581.5,0.0042047]
[1646760706250,0.3,2581.6,2581.5,0.0042047]
[1646760706447,0.3,2581.6,2581.2,0.00165992]
[1646760706648,0.3,2581.6,2581.5,0.00420476]
[1646760707848,0.3,2581.6,2581.4,0.00422901]
[1646760708049,0.25,2582.0,2581.4,0.39342901]
[1646760708253,4.12575,2582.5,2581.6,0.3892]
[1646760708254,0.25,2582.5,2581.6,0.3892]
[1646760708452,0.25,2582.5,2581.8,0.3892]
[1646760708652,0.25,2582.3,2582.0,0.3892]
[1646760708902,0.25,2582.3,2582.1,1.15636196]
[1646760709105,0.25,2582.3,2581.6,0.00433637]
[1646760709507,0.25,2582.5,2581.6,0.00433637]
[1646760709508,0.25,2582.5,2581.7,0.468]
[1646760709705,0.25,2582.5,2581.9,3.0]
[1646760710005,0.3873,2583.5,2582.0,3.968]
[1646760710006,0.25,2582.3,2582.0,3.968]
[1646760710204,0.25,2583.1,2582.3,0.14067003]
[1646760710409,0.25,2582.9,2582.3,0.14067003]
[1646760710611,3.75,2582.9,2582.3,0.14067003]
[1646760710807,0.25,2582.9,2582.4,1.1]
[1646760711207,1.93773,2582.8,2582.4,1.1]
[1646760711707,2.23773,2582.8,2582.4,1.1]
[1646760711907,1.90623563,2582.6,2582.4,1.1]
[1646760712112,1.90623563,2582.6,2581.2,4.02125992]
[1646760712113,1.9379,2582.2,2581.2,4.02125992]
[1646760712310,0.3,2582.1,2581.2,0.00165992]
[1646760712747,0.25,2581.8,2581.2,0.00165992]
[1646760713151,0.25,2581.8,2581.5,1.20882895]
[1646760713447,0.25,2581.8,2581.2,0.00165992]
[1646760713847,0.25,2581.8,2581.4,0.00317306]
[1646760714047,1.93786,2581.7,2581.4,0.00317306]
[1646760714248,0.3,2581.6,2581.4,0.00317306]
[1646760715048,0.3,2581.6,2581.4,0.00318696]
[1646760716052,0.3,2581.6,2581.4,0.00771102]
[1646760716251,0.96891,2581.7,2581.4,0.00771102]
[1646760716252,0.96891,2581.7,2581.4,0.00452406]
[1646760716897,2.1879,2581.8,2581.4,0.00452406]
[1646760716898,1.71270013,2581.8,2581.4,0.00452406]
[1646760717097,1.71270013,2581.8,2581.5,1.1]
[1646760717302,0.96898,2581.7,2581.5,1.1]
[1646760718100,0.96891,2581.8,2581.6,1.1]
[1646760718301,0.25,2581.8,2581.6,1.1]
[1646760719002,0.25,2581.9,2581.6,2.43893379]
[1646760719201,0.25,2581.9,2581.8,1.1]
[1646760719400,0.96867,2582.2,2581.8,1.568]
[1646760719601,0.25,2582.1,2581.8,1.568]
[1646760720252,0.96867,2582.2,2582.0,2.6190439]
[1646760720453,0.25,2582.5,2582.0,2.6190439]
[1646760720650,3.87577,2583.0,2582.2,1.4892]
[1646760720849,3.87577,2583.0,2582.3,1.568]
[1646760720850,0.25,2582.5,2582.3,1.568]
[1646760721049,1.21858,2582.5,2582.3,1.568]
[1646760722251,0.25,2582.6,2582.3,1.96142071]
[1646760722455,0.25,2583.3,2582.5,1.4892]
[1646760722654,0.79158391,2583.9,2582.7,1.1]
[1646760722853,0.25,2583.2,2582.9,1.1]
[1646760723053,0.96833,2583.1,2582.9,1.1]
[1646760723251,0.96833,2583.1,2583.0,1.1]
[1646760723896,1.26833,2583.1,2583.0,1.1]
[1646760724597,0.96833,2583.1,2583.0,1.1]
[1646760725300,1.26833,2583.1,2583.0,1.1]
[1646760725701,1.26833,2583.1,2582.5,0.05984395]
[1646760725901,0.96867,2583.0,2582.5,0.0644853]
[1646760726102,0.96867,2583.0,2582.8,1.1]
[1646760726300,3.50567,2583.1,2582.8,1.1]
[1646760726301,1.56833,2583.1,2582.8,1.1]
[1646760726501,1.26833,2583.1,2582.8,1.1]
[1646760726902,0.96833,2583.1,2582.8,1.1]
[1646760727503,0.96833,2583.1,2582.9,1.1]
[1646760728148,0.3,2583.0,2582.9,1.1]
[1646760728547,0.96833,2583.1,2582.7,1.1]
[1646760728747,0.55,2583.2,2582.7,1.9572]
[1646760728748,0.25,2583.2,2582.7,1.9572]
[1646760729346,0.25,2583.2,2583.1,2.2923282]
[1646760729748,0.25,2583.2,2583.1,1.1]
[1646760732200,0.25,2583.2,2583.1,2.66557248]
[1646760732599,0.25,2583.2,2583.1,3.13357248]
[1646760733103,0.25,2583.2,2583.1,3.52277248]
[1646760733301,0.25,2583.2,2583.1,2.66557248]
[1646760733500,0.25,2583.2,2583.1,1.1]
[1646760734905,3.5,2584.2,2583.1,1.1]
[1646760734906,0.637,2583.9,2583.6,0.24943981]
[1646760735168,0.387,2583.9,2583.7,1.568]
[1646760735361,0.387,2583.9,2583.7,2.5359391]
[1646760735562,0.387,2583.9,2583.7,1.568]
[1646760736760,0.25,2584.1,2583.7,4.568]
[1646760736965,0.25,2584.7,2584.3,1.1]
[1646760737163,2.90407,2584.8,2584.3,1.1]
[1646760737461,0.25,2584.7,2584.3,1.1]
[1646760737661,3.75,2584.7,2584.3,1.1]
[1646760737861,1.21783,2584.7,2584.3,1.1]
[1646760738063,2.18578,2584.7,2584.3,1.1]
[1646760738260,0.3,2584.6,2584.3,1.1]
[1646760738903,2.18578,2584.7,2584.3,1.1]
[1646760738904,0.25,2584.7,2584.3,1.1]
[1646760739101,0.25,2584.7,2584.2,0.26752465]
[1646760739102,0.25,2584.7,2584.5,1.09576]
[1646760739503,0.25,2585.4,2584.6,5.9204404]
[1646760739711,0.01798148,2585.5,2585.0,1.09576]
[1646760739910,0.25,2585.4,2585.2,1.09576]
[1646760740105,3.5,2585.3,2585.2,1.09576]
[1646760740308,3.5,2585.3,2585.2,1.56376]
[1646760740915,3.5,2585.3,2585.2,1.09576]
[1646760741910,3.5,2585.3,2585.0,1.09576]
[1646760742311,3.5,2585.3,2584.4,12.87751]
[1646760742514,3.5,2585.3,2583.9,2.916579]
[1646760742515,3.8,2585.2,2583.9,2.916579]
[1646760742757,0.25,2584.7,2583.8,1.0]
[1646760742954,0.25,2584.7,2583.7,1.1462]
[1646760742955,2.32533,2584.6,2583.6,0.24943981]
[1646760743157,1.53580465,2584.5,2583.6,1.33792242]
[1646760743356,1.83580465,2584.5,2583.6,0.24943981]
[1646760743554,0.25,2584.2,2583.6,0.24943981]
[1646760743955,3.5,2584.1,2583.6,0.24943981]
[1646760744160,0.3,2584.0,2583.6,0.24943981]
[1646760744354,0.91932278,2583.7,2583.6,0.24943981]
[1646760744756,0.91932278,2583.7,2583.6,3.981e-05]
[1646760744958,0.6,2583.8,2582.6,1.2041]
[1646760744959,0.3892,2583.6,2582.6,1.2041]
[1646760745157,0.3892,2583.6,2582.1,1.1509]
[1646760745158,0.25,2583.3,2582.1,1.1509]
[1646760745361,0.25,2583.3,2581.9,2.8471]
[1646760745362,0.25,2583.3,2582.3,3.0]
[1646760745562,0.25,2583.3,2582.4,0.468]
[1646760745966,1.10974245,2582.8,2581.8,2.3844]
[1646760746262,0.25,2582.4,2582.0,0.468]
[1646760746502,0.25,2582.4,2581.4,3.06243348]
[1646760746703,0.25,2582.4,2581.5,5.05788282]
[1646760746899,0.25,2582.4,2581.6,1.55788282]
[1646760747099,1.2139223,2582.4,2581.8,1.9370273]
[1646760747301,0.55,2582.4,2581.5,4.66423081]
[1646760747500,3.5,2582.3,2581.5,1.16423081]
[1646760747900,0.3,2582.2,2582.0,0.0048615]
[1646760748102,1.26865,2582.2,2582.0,0.0048615]
[1646760748505,1.11738418,2582.1,2582.0,0.0048615]
[1646760748701,4.91738418,2582.1,2582.0,0.0048615]
[1646760748900,3.8,2582.1,2582.0,0.0048615]
[1646760749102,3.5,2582.1,2582.0,0.0048615]
[1646760750161,3.5,2582.1,2581.7,0.87732168]
[1646760750954,3.5,2582.1,2581.8,0.87732168]
[1646760752755,3.5,2582.1,2581.8,0.88217575]
[1646760753456,3.5,2582.1,2581.9,0.87732168]
[1646760753903,3.8,2582.1,2581.9,0.87732168]
[1646760754302,3.5,2582.1,2581.9,0.87732168]
[1646760754603,3.5,2582.1,2582.0,0.87732168]
[1646760755407,3.5,2582.1,2581.8,0.87732168]
[1646760755613,3.75,2582.1,2581.8,0.87732168]
[1646760756411,3.75,2582.1,2582.0,0.87732168]
[1646760757013,0.25,2582.1,2582.0,1.34532168]
[1646760757212,8.7748,2583.7,2582.1,0.87732168]
[1646760757213,0.25,2582.3,2582.1,0.87732168]
[1646760757411,15.1059,2583.7,2582.6,0.87732168]
[1646760757412,0.3892,2583.7,2582.6,0.87732168]
[1646760757665,0.3892,2583.7,2582.8,0.87732168]
[1646760757850,0.13819997,2583.8,2583.1,0.87732168]
[1646760758652,0.3892,2584.1,2583.1,0.87732168]
[1646760758653,1.35746,2584.1,2583.1,0.87732168]
[1646760758856,1.35746,2584.1,2583.5,0.87732168]
[1646760759057,3.5,2583.9,2583.5,0.87732168]
[1646760759253,3.5,2583.9,2583.6,0.87732168]
[1646760759857,0.96826,2584.1,2583.6,0.87732168]
[1646760760057,0.3,2584.0,2583.6,0.87732168]
[1646760760263,0.3,2584.0,2583.7,0.87732168]
[1646760761261,0.3,2584.0,2583.8,0.87732168]
[1646760761513,0.3892,2584.4,2583.8,0.87732168]
[1646760761715,3.5,2584.6,2583.8,0.87732168]
[1646760761912,3.5,2584.6,2584.1,0.87732168]
[1646760762513,7.36,2584.8,2584.2,0.87732168]
[1646760762714,9.62803,2584.8,2584.2,0.87732168]
[1646760762915,12.21723,2584.8,2584.2,0.87732168]
[1646760763314,0.96815,2584.7,2584.2,0.87732168]
[1646760763515,0.3892,2584.6,2583.6,0.87732168]
[1646760763816,0.9681,2584.5,2583.9,0.87732168]
[1646760764015,0.3,2584.5,2583.9,0.87732168]
[1646760764217,0.6892,2584.6,2583.9,0.87732168]
[1646760764614,0.3,2584.6,2583.9,0.87732168]
[1646760764816,0.96803,2584.5,2584.0,0.87732168]
[1646760765015,0.3,2584.4,2584.0,0.87732168]
[1646760765457,1.26803,2584.5,2584.0,0.87732168]
[1646760765657,1.26803,2584.5,2584.1,0.87732168]
[1646760765856,0.3,2584.5,2584.1,0.87732168]
[1646760766254,0.3,2584.6,2584.1,0.87732168]
[1646760766655,0.3,2584.6,2584.2,0.87732168]
[1646760767556,3.2047,2584.6,2584.2,0.87732168]
[1646760767758,4.8939,2584.6,2583.7,4.37732168]
[1646760767957,4.8939,2584.6,2583.7,0.87732168]
[1646760768159,4.5047,2584.6,2583.7,4.37732168]
[1646760768361,4.5047,2584.6,2583.7,0.87732168]
[1646760768556,4.5047,2584.6,2584.1,0.87732168]
[1646760768760,4.5047,2584.6,2584.2,0.87732168]
[1646760769803,4.5047,2584.6,2584.3,0.87732168]
[1646760770804,4.5047,2584.6,2584.4,0.87732168]
[1646760771607,3.2047,2584.6,2584.4,0.87732168]
[1646760771808,0.3,2584.6,2584.3,0.87732168]
[1646760772008,0.9679,2584.7,2584.3,0.87732168]
[1646760772405,0.3,2584.8,2584.3,0.87732168]
[1646760772855,7.0,2584.9,2584.4,0.87732168]
[1646760773054,2.92546,2585.0,2584.4,0.87732168]
[1646760773255,1.93618,2584.8,2584.4,0.87732168]
[1646760773455,2.23618,2584.8,2584.4,0.87732168]
[1646760773855,2.23618,2584.8,2584.5,0.87732168]
[1646760774057,0.96803,2584.7,2584.5,0.87732168]
[1646760774560,0.3,2584.6,2584.5,0.87732168]
[1646760774759,0.3,2584.8,2584.5,0.87732168]
[1646760775161,0.96786,2585.0,2584.5,0.87732168]
[1646760775362,1.26786,2585.0,2584.5,0.87732168]
[1646760775765,2.37391997,2585.2,2584.5,0.87732168]
[1646760775766,0.13819997,2585.2,2584.5,0.87732168]
[1646760775964,3.5,2585.1,2584.5,1.26652168]
[1646760776168,0.01764748,2585.4,2584.5,1.26652168]
[1646760776404,0.01764748,2585.4,2584.7,1.26652168]
[1646760776603,0.01764748,2585.4,2585.3,1.80067068]
[1646760777206,0.01764748,2585.4,2585.3,0.87732168]
[1646760777403,0.01764931,2585.5,2585.3,0.87732168]
[1646760778203,0.01764931,2585.5,2585.4,0.87732168]
[1646760778403,0.3,2585.7,2585.4,0.87732168]
[1646760778613,0.96772,2585.8,2585.4,1.76173611]
[1646760778614,0.96763,2585.6,2585.4,1.76173611]
[1646760778803,0.3,2585.7,2585.4,1.76173611]
[1646760779002,0.3,2585.8,2585.4,1.76173611]
[1646760779202,0.92675021,2586.1,2585.4,1.76173611]
[1646760779602,0.96759,2585.9,2585.4,1.7603199]
[1646760779806,1.56759,2585.9,2585.4,1.7603199]
[1646760780002,0.6,2585.9,2585.4,1.7603199]
[1646760780262,3.5,2586.0,2585.4,1.7603199]
[1646760780466,0.16467229,2586.4,2585.4,1.7603199]
[1646760780467,0.16467229,2586.4,2585.4,2.6175199]
[1646760780662,3.5,2586.3,2585.4,2.6175199]
[1646760780859,0.01760753,2586.2,2585.4,2.6175199]
[1646760781161,0.01760753,2586.2,2585.4,5.6175199]
[1646760781362,0.01760753,2586.2,2585.7,1.26510547]
[1646760781564,0.97169064,2586.9,2586.2,1.26510547]
[1646760781565,0.00440064,2586.9,2586.2,1.26510547]
[1646760781759,0.00440064,2586.9,2586.4,1.26510547]
[1646760781963,0.00440064,2586.9,2586.6,1.26510547]
[1646760782164,0.92675021,2587.7,2587.4,0.87590547]
[1646760782365,1.42675021,2587.8,2587.6,1.177]
[1646760782560,0.92675021,2587.8,2587.6,1.177]
[1646760782761,8.76659447,2588.1,2587.6,1.177]
[1646760782762,0.92675021,2587.9,2587.6,1.177]
[1646760782962,0.92675021,2588.1,2587.6,1.177]
[1646760783164,8.32664,2588.6,2587.6,1.177]
[1646760783165,0.92675021,2588.2,2587.6,1.177]
[1646760783361,0.92675021,2588.4,2587.7,1.177]
[1646760783564,0.92675021,2588.6,2588.3,2.1075683]
[1646760783769,0.92675021,2588.8,2588.4,0.468]
[1646760784005,0.5,2588.9,2588.5,1.177]
[1646760784204,0.92675021,2589.4,2588.7,1.177]
[1646760784405,0.92675021,2589.2,2588.7,1.177]
[1646760784603,4.90659447,2589.5,2588.8,1.177]
[1646760784604,0.92675021,2589.1,2588.8,1.177]
[1646760784806,0.92675021,2589.2,2588.8,1.177]
[1646760785007,0.92675021,2589.4,2588.8,1.177]
[1646760785203,0.92675021,2589.3,2588.8,1.177]
[1646760785406,0.92675021,2589.4,2588.8,1.167]
[1646760785608,0.92675021,2589.7,2588.9,1.167]
[1646760785807,0.00434808,2589.1,2588.9,1.167]
[1646760786207,0.00434808,2589.1,2589.0,2.06188924]
[1646760786609,4.81595021,2589.9,2589.0,2.06188924]
[1646760787107,0.96628,2589.7,2589.1,1.167]
[1646760787307,3.63819997,2589.6,2589.1,0.41054871]
[1646760787514,1.08380068,2589.7,2589.1,0.41054871]
[1646760787767,1.08380068,2589.7,2588.5,3.5]
[1646760787768,0.92675021,2590.3,2589.3,0.41054871]
[1646760787964,3.5,2590.2,2589.3,0.41054871]
[1646760788162,3.5,2590.2,2589.5,0.41054871]
[1646760788564,0.01738971,2589.9,2589.5,0.41054871]
[1646760789266,0.9661,2590.0,2589.5,0.41054871]
[1646760790072,0.99469273,2589.9,2589.5,0.41054871]
[1646760790470,0.9661,2590.0,2589.5,0.41054871]
[1646760790674,0.96615,2590.2,2589.5,0.41054871]
[1646760790675,0.00391328,2589.9,2589.5,1.37651811]
[1646760791273,0.00391328,2589.9,2589.3,2.7891049]
[1646760791274,0.00391328,2589.9,2589.7,0.79974871]
[1646760791507,0.00391328,2589.9,2589.8,0.87854871]
[1646760791803,0.00391328,2589.9,2589.8,0.41054871]
[1646760792204,0.00476746,2590.2,2589.8,0.41054871]
[1646760792708,0.1337985,2589.9,2589.8,0.41054871]
[1646760792904,0.00476746,2590.2,2589.8,0.41054871]
[1646760793106,0.1337985,2590.0,2589.8,0.41054871]
[1646760793309,0.00476745,2590.5,2590.0,0.41054871]
[1646760793510,0.00476745,2590.5,2590.0,0.87854871]
[1646760793909,0.00476745,2590.5,2590.0,1.77654283]
[1646760794109,0.03999,2590.9,2590.0,1.77654283]
[1646760794311,0.03999,2590.9,2590.2,0.41054871]
[1646760794511,0.03999,2590.9,2590.4,0.41054871]
[1646760795267,0.03999,2590.9,2590.7,0.41054871]
[1646760795464,0.03999,2590.9,2590.8,4.37854871]
[1646760795661,0.03999,2590.9,2590.8,0.41054871]
[1646760795863,0.18380363,2591.9,2590.8,0.87854871]
[1646760796265,1.00177931,2591.5,2590.8,0.87854871]
[1646760796464,1.00177931,2591.5,2591.1,0.41054871]
[1646760796866,1.30177931,2591.5,2591.1,0.41054871]
[1646760797466,1.30177931,2591.5,2591.1,0.22384721]
[1646760797666,1.00177931,2591.5,2591.1,0.22384721]
[1646760797869,1.30177931,2591.5,2591.1,0.22384721]
[1646760798466,2.26735931,2591.5,2591.1,0.22384721]
[1646760798765,1.12263047,2591.5,2591.1,0.08169344]
[1646760799011,3.92818997,2592.1,2591.1,0.08169344]
[1646760799409,3.92818997,2592.1,2591.2,0.468]
[1646760799410,0.28999,2592.1,2591.2,0.468]
[1646760799608,0.28999,2592.1,2591.3,3.58169344]
[1646760799910,0.28999,2592.1,2591.6,0.08169344]
[1646760800813,0.23999,2592.1,2591.6,1.04689174]
[1646760801012,0.23999,2592.1,2591.7,0.08169344]
[1646760801608,0.00434893,2592.0,2591.7,2.01184384]
[1646760802009,0.00434893,2592.0,2591.9,0.08169344]
[1646760803755,0.00434893,2592.0,2591.7,0.53875127]
[1646760803756,5.5,2591.9,2591.7,0.53875127]
[1646760803957,6.46544,2591.9,2591.7,0.53875127]
[1646760804159,6.0,2591.7,2590.7,1.20220798]
[1646760804355,0.96562,2591.3,2590.5,1.9310225]
[1646760804555,1.35482,2591.3,2590.0,2.4312]
[1646760804756,0.3,2591.2,2590.0,2.4312]
[1646760804955,0.96581,2590.9,2590.0,2.4312]
[1646760805155,1.93164,2591.1,2590.1,3.5]
[1646760805363,1.07802345,2591.8,2589.7,9.4762]
[1646760805364,0.00434893,2591.0,2590.8,2.94663617]
[1646760805566,4.893e-05,2591.0,2590.8,2.94663617]
[1646760805763,4.893e-05,2591.0,2590.9,0.468]
[1646760805962,4.893e-05,2591.0,2590.9,16.2672]
[1646760806162,0.23999,2592.1,2591.1,0.3892]
[1646760806413,0.5,2592.3,2591.5,6.3892]
[1646760806613,0.03316554,2592.7,2592.2,0.01231417]
[1646760806614,0.3869,2592.6,2592.2,0.01231417]
[1646760806811,0.3869,2592.6,2592.3,0.468]
[1646760807011,0.3869,2592.6,2592.4,0.3892]
[1646760807213,0.3869,2592.6,2592.5,0.468]
[1646760808217,0.1778833,2593.2,2592.6,4.0]
[1646760808418,0.1778833,2593.2,2592.6,4.468]
[1646760808817,0.1778833,2593.2,2592.6,0.468]
[1646760809217,0.1778833,2593.2,2591.6,4.3269864]
[1646760809419,1.42345043,2592.8,2592.0,1.17277786]
[1646760809619,1.33425043,2592.8,2592.0,1.17277786]
[1646760810014,1.33425043,2592.8,2591.7,1.5187]
[1646760810264,0.00429457,2592.4,2592.0,1.9299339]
[1646760811164,0.00429457,2592.4,2591.5,0.98558613]
[1646760811364,0.00429457,2592.3,2591.5,0.98558613]
[1646760811562,0.00429457,2592.3,2591.6,0.9651688]
[1646760811766,0.03865995,2592.9,2591.9,6.3892]
[1646760811965,0.03865995,2592.9,2592.0,3.8892]
[1646760812164,0.03865995,2592.9,2592.1,0.468]
[1646760812463,0.03865995,2592.9,2592.6,1.17073202]
[1646760812673,0.00271666,2593.0,2592.7,10.3572]
[1646760812674,1.666e-05,2593.0,2592.7,10.3572]
[1646760812869,3.61348697,2593.8,2592.9,6.0]
[1646760812870,3.67e-05,2593.6,2592.9,6.0]
[1646760813066,3.67e-05,2593.6,2593.1,0.0127461]
[1646760813067,6.664e-05,2593.5,2593.1,0.0127461]
[1646760813269,0.01198918,2593.6,2593.3,0.3892]
[1646760813465,0.01198918,2593.6,2593.5,0.3892]
[1646760813466,8.918e-05,2593.6,2593.5,0.3892]
[1646760813770,3.44446584,2593.8,2593.5,1.4321993]
[1646760814205,3.44446584,2593.8,2593.5,0.468]
[1646760815206,3.44864779,2593.8,2593.5,2.3967132]
[1646760815411,3.44864779,2593.8,2593.6,1.09371321]
[1646760815613,0.07945928,2594.5,2594.0,1.09371321]
[1646760815815,0.07945928,2594.5,2594.0,1.48291321]
[1646760816012,0.07945928,2594.5,2593.9,6.0]
[1646760816013,0.07636212,2595.0,2594.5,6.0]
[1646760816214,0.08410012,2595.0,2594.6,1.95091321]
[1646760816415,0.08410012,2595.0,2594.6,1.56171321]
[1646760816617,0.08410012,2595.0,2594.8,1.09371321]
[1646760817015,0.08410012,2595.0,2594.8,0.4038592]
[1646760818084,0.03410012,2595.0,2594.8,0.4038592]
[1646760818287,0.03410012,2595.0,2594.9,0.8718592]
[1646760819890,0.17611319,2595.2,2594.9,0.8718592]
[1646760820090,0.19158919,2595.2,2594.9,0.8718592]
[1646760820290,0.04035806,2595.1,2594.9,0.4038592]
[1646760820701,0.31098416,2594.8,2594.2,9.999e-05]
[1646760820890,1.92893,2594.7,2594.2,9.999e-05]
[1646760821294,0.31098416,2594.8,2594.3,0.468]
[1646760822720,0.26098416,2594.8,2594.3,0.468]
[1646760822921,0.27646016,2594.8,2594.2,9.999e-05]
[1646760823322,2.20489016,2594.8,2594.2,9.999e-05]
[1646760823522,1.24067016,2594.8,2594.2,9.999e-05]
[1646760823725,4.74067016,2594.8,2594.2,9.999e-05]
[1646760823921,5.04067016,2594.8,2594.2,9.999e-05]
[1646760824123,3.0,2594.7,2594.2,9.999e-05]
[1646760824321,3.5,2594.6,2594.2,9.999e-05]
[1646760824521,3.8,2594.6,2594.2,9.999e-05]
[1646760824724,2.3182,2594.5,2593.1,0.468]
[1646760824922,0.015476,2594.5,2594.2,0.00482518]
[1646760825767,0.979806,2594.5,2594.3,0.468]
[1646760826872,2.908476,2594.5,2594.2,0.00482513]
[1646760827068,0.96433,2594.4,2594.2,0.00482513]
[1646760827267,1.26433,2594.4,2593.9,0.468]
[1646760827466,1.92852,2594.3,2593.9,0.468]
[1646760827668,1.92852,2594.3,2594.0,1.07054526]
[1646760827870,1.92852,2594.3,2594.2,1.1]
[1646760828066,1.92852,2594.3,2594.2,1.568]
[1646760828666,1.92852,2594.3,2594.2,0.93279655]
[1646760828923,0.979806,2594.5,2594.2,0.93279655]
[1646760828924,0.3,2594.4,2594.2,0.93279655]
[1646760829109,0.979806,2594.5,2594.2,0.93279655]
[1646760829310,0.979806,2594.5,2594.4,0.46479655]
[1646760830919,0.979806,2594.5,2594.4,0.88279655]
[1646760831520,0.015476,2594.5,2594.4,0.88279655]
[1646760831717,0.015476,2594.5,2594.4,0.41479655]
[1646760832964,6.0,2594.3,2593.5,3.5]
[1646760833174,6.0,2594.3,2593.2,2.8929698]
[1646760833175,3.5,2594.2,2593.2,2.8929698]
[1646760833370,3.5,2594.2,2592.9,0.468]
[1646760833371,0.3892,2594.2,2592.9,0.468]
[1646760833573,0.3892,2593.9,2592.7,0.468]
[1646760833971,0.3892,2593.7,2593.1,0.964647]
[1646760834175,0.96464,2593.8,2593.3,1.13022878]
[1646760834373,1.26464,2593.8,2593.3,1.13022878]
[1646760834571,3.19391,2593.8,2593.3,1.13022878]
[1646760835176,3.89391,2593.8,2593.3,1.13022878]
[1646760835376,2.22927,2593.9,2593.4,1.4324609]
[1646760835377,1.92927,2593.9,2593.4,1.4324609]
[1646760835573,0.404676,2594.5,2593.4,1.4324609]
[1646760835975,0.9644,2594.1,2593.4,1.4324609]
[1646760836174,0.015476,2594.5,2593.4,1.4324609]
[1646760836441,0.015476,2594.5,2593.8,0.93695391]
[1646760836640,0.015476,2594.5,2593.9,0.468]
[1646760837237,0.02476744,2595.3,2594.0,6.0]
[1646760837441,0.0565872,2595.4,2594.5,0.9641139]
[1646760837646,0.06920604,2595.4,2594.6,5.851]
[1646760837838,0.06920604,2595.4,2594.6,0.468]
[1646760838036,0.06920604,2595.4,2595.1,0.01233029]
[1646760838239,0.06920604,2595.4,2595.2,1.12379526]
[1646760838437,0.06920604,2595.4,2595.3,0.468]
[1646760839038,0.06920604,2595.4,2595.3,0.46164236]
[1646760839845,0.06920604,2595.4,2595.0,1.9274777]